bitfinex/quotes_SOLUSD_20240926
["timestamp","ask_amount","ask_price","bid_price","bid_amount"]
[1727358749535,6.587,151.82,151.78,6.5883]
[1727358750051,6.5871,151.81,151.77,6.5888]
[1727358750223,15.3457,151.81,151.76,16.4725]
[1727358750423,21.9329,151.81,151.76,23.0617]
[1727358750648,21.9329,151.81,151.77,6.5888]
[1727358751143,6.3915,151.83,151.74,0.2590789]
[1727358751144,6.3915,151.83,151.8,6.5873]
[1727358751343,6.3915,151.83,151.81,1.31724578]
[1727358751929,6.3915,151.83,151.8,6.5873]
[1727358752128,6.3915,151.83,151.79,30.364484]
[1727358752635,6.3915,151.83,151.8,6.5871]
[1727358752956,6.3915,151.83,151.81,7.90430254]
[1727358753143,6.3915,151.83,151.81,6.5871]
[1727358753343,6.3915,151.83,151.8,6.83838]
[1727358756722,6.3915,151.83,151.79,23.776884]
[1727358756723,12.9782,151.83,151.79,6.5879]
[1727358756925,12.9782,151.83,151.78,16.4708]
[1727358756926,6.5867,151.82,151.78,23.0591]
[1727358757127,15.8498,151.85,151.82,0.12549]
[1727358757354,6.3229,151.87,151.8,0.25098]
[1727358757355,6.3229,151.87,151.85,6.5853]
[1727358757572,6.3229,151.87,151.86,7.90187754]
[1727358757728,16.5916,151.89,151.86,7.90187754]
[1727358757928,16.5916,151.89,151.86,1.31687754]
[1727358758125,16.5916,151.89,151.87,6.5844]
[1727358758350,0.2590789,151.9,151.87,16.4609]
[1727358758557,0.2590789,151.9,151.89,0.25098]
[1727358758926,0.2590789,151.9,151.89,31.92801757]
[1727358759345,0.2590789,151.9,151.89,30.611564]
[1727358759830,0.2590789,151.9,151.89,0.25098]
[1727358760455,0.2590789,151.9,151.87,16.4609]
[1727358760736,0.2590789,151.9,151.88,6.584]
[1727358763063,0.2590789,151.9,151.89,8.15123735]
[1727358763251,0.2590789,151.9,151.89,31.92812135]
[1727358763438,0.2590789,151.9,151.89,30.611564]
[1727358764349,0.2590789,151.9,151.89,51.92782272]
[1727358764542,0.2590789,151.9,151.89,50.611564]
[1727358765656,0.2590789,151.95,151.94,6.83248]
[1727358765853,0.2590789,151.95,151.94,30.609364]
[1727358766551,0.2590789,151.95,151.92,6.5822]
[1727358766869,0.2590789,151.95,151.93,6.83278]
[1727358767554,0.2590789,151.95,151.92,16.4551]
[1727358767757,0.2590789,151.95,151.92,23.0374]
[1727358768877,0.2590789,151.95,151.93,7.89777356]
[1727358769077,0.2590789,151.95,151.93,6.5816]
[1727358769777,0.2590789,151.95,151.93,7.89772377]
[1727358770291,0.2590789,151.95,151.94,31.92548732]
[1727358770590,0.2590789,151.95,151.94,6.5815]
[1727358770889,0.2590789,151.95,151.93,0.25098]
[1727358771066,0.2590789,151.95,151.93,6.83288]
[1727358771479,0.2590789,151.95,151.94,1.31608869]
[1727358772764,0.2590789,151.95,151.94,31.92545269]
[1727358772966,0.2590789,151.95,151.94,30.609364]
[1727358779794,0.2590789,151.95,151.94,50.609364]
[1727358782798,0.2590789,151.95,151.94,51.92502994]
[1727358783103,0.2590789,151.95,151.94,50.609364]
[1727358784597,0.2590789,151.95,151.94,6.5815]
[1727358785886,0.2590789,151.95,151.94,30.609364]
[1727358786405,0.2590789,151.95,151.94,31.9252749]
[1727358786704,0.2590789,151.95,151.94,51.9252749]
[1727358787403,0.2590789,151.95,151.94,50.609364]
[1727358788307,0.2590789,151.95,151.92,23.0374]
[1727358788878,0.2590789,151.95,151.93,1.31619302]
[1727358789076,0.2590789,151.95,151.94,6.5815]
[1727358789706,0.2590789,151.95,151.94,31.9252661]
[1727358790307,0.2590789,151.95,151.94,30.609364]
[1727358790494,0.2590789,151.95,151.94,31.92526023]
[1727358790888,0.2590789,151.95,151.94,50.609364]
[1727358792707,0.2590789,151.95,151.94,51.92517196]
[1727358793004,0.2590789,151.95,151.94,50.609364]
[1727358793503,0.13612844,151.95,151.94,50.609364]
[1727358794205,0.13612844,151.95,151.93,6.5818]
[1727358794386,0.13612844,151.95,151.94,7.89760939]
[1727358794588,0.13612844,151.95,151.94,6.5815]
[1727358795084,0.13612844,151.95,151.93,6.5816]
[1727358795689,0.13612844,151.95,151.94,6.5815]
[1727358796879,0.13612844,151.95,151.94,30.483874]
[1727358797078,0.13612844,151.95,151.94,31.92527524]
[1727358797307,0.13612844,151.95,151.94,30.609364]
[1727358798314,0.13612844,151.95,151.94,50.609364]
[1727358800288,0.3676919,152.01,151.95,20.0]
[1727358800497,0.3676919,152.01,152.0,50.606764]
[1727358800793,0.3676919,152.01,152.0,51.9219935]
[1727358801109,0.3676919,152.01,152.0,50.606764]
[1727358805804,0.3676919,152.01,152.0,30.606764]
[1727358806606,0.3676919,152.01,152.0,6.5789]
[1727358808303,0.3676919,152.01,152.0,6.70439]
[1727358809089,0.3676919,152.01,152.0,6.82988]
[1727358811217,0.3676919,152.01,152.0,31.9222228]
[1727358812010,0.3676919,152.01,152.0,30.606764]
[1727358812918,0.3676919,152.01,152.0,50.606764]
[1727358815198,0.3676919,152.01,152.0,51.92219004]
[1727358816211,0.3676919,152.01,152.0,6.70439]
[1727358816411,0.3676919,152.01,152.0,0.12549]
[1727358817399,0.3676919,152.01,151.98,6.5797]
[1727358817606,0.3676919,152.01,151.97,6.58]
[1727358817607,6.3257,152.0,151.97,6.58]
[1727358817993,6.5799,151.98,151.94,6.5814]
[1727358818225,6.5799,151.98,151.93,16.4541]
[1727358818226,6.5799,151.98,151.93,23.0359]
[1727358818389,6.3257,152.0,151.94,6.5814]
[1727358818589,6.5794,151.99,151.94,6.5814]
[1727358818794,6.3257,152.0,151.94,6.5814]
[1727358819015,6.5799,151.98,151.94,6.5814]
[1727358819525,6.5799,151.98,151.93,23.0357]
[1727358819734,6.5799,151.98,151.94,6.5814]
[1727358820021,6.5794,151.99,151.94,6.5814]
[1727358820204,6.3257,152.0,151.93,16.4541]
[1727358820412,16.4982,151.99,151.93,23.036]
[1727358820598,6.5799,151.98,151.93,23.036]
[1727358821217,16.4982,151.99,151.86,66.23036479]
[1727358821425,6.2747,151.94,151.9,23.0412]
[1727358821601,16.0275,151.93,151.89,6.5836]
[1727358821803,16.0275,151.93,151.9,6.5832]
[1727358822402,16.0275,151.93,151.84,0.2590789]
[1727358822933,22.6095,151.93,151.88,6.584]
[1727358823221,16.0275,151.93,151.84,0.2590789]
[1727358823428,16.0275,151.93,151.88,16.4598]
[1727358823599,16.0275,151.93,151.9,6.5831]
[1727358823925,16.0275,151.93,151.91,6.5827]
[1727358824122,16.0275,151.93,151.9,23.0408]
[1727358825630,16.0275,151.93,151.91,7.8990502]
[1727358826509,16.0275,151.93,151.91,6.5826]
[1727358828432,16.0275,151.93,151.9,16.4576]
[1727358828601,16.0275,151.93,151.9,23.0405]
[1727358829233,16.0275,151.93,151.91,6.5827]
[1727358829398,16.0275,151.93,151.92,8.1497809]
[1727358829598,16.0275,151.93,151.92,6.83338]
[1727358830223,16.0275,151.93,151.92,6.5824]
[1727358830526,16.0275,151.93,151.91,6.5827]
[1727358831429,16.0275,151.93,151.92,6.5824]
[1727358834124,16.0275,151.93,151.91,6.5828]
[1727358834300,6.2747,151.94,151.92,17.77175934]
[1727358834506,16.3075,151.97,151.92,17.77175934]
[1727358834722,16.3075,151.97,151.94,6.5812]
[1727358838630,6.5808,151.96,151.92,23.0376]
[1727358838818,22.888,151.97,151.92,23.0376]
[1727358839320,22.888,151.97,151.92,16.4554]
[1727358839507,22.888,151.97,151.93,6.5817]
[1727358839830,16.3075,151.97,151.93,6.5817]
[1727358840239,16.3075,151.97,151.94,6.5812]
[1727358840529,16.3075,151.97,151.96,6.5806]
[1727358840727,6.6175,151.98,151.95,1.31611679]
[1727358841030,15.7519919,152.01,151.98,6.5797]
[1727358842613,15.7519919,152.01,152.0,6.5789]
[1727358842923,15.7519919,152.01,151.99,0.12549]
[1727358843107,15.7519919,152.01,152.0,6.5789]
[1727358843310,15.7519919,152.01,152.0,6.70439]
[1727358843311,0.3676919,152.01,152.0,6.70439]
[1727358844123,0.3676919,152.01,151.99,6.5793]
[1727358844806,0.3676919,152.01,152.0,7.89449899]
[1727358845831,0.3676919,152.01,151.99,6.5792]
[1727358846016,0.3676919,152.01,151.99,6.70479]
[1727358846541,0.3676919,152.01,151.99,6.5793]
[1727358846715,6.5789,152.0,151.96,6.5805]
[1727358846911,6.9462919,152.01,151.96,6.5805]
[1727358847107,6.9462919,152.01,151.97,6.5801]
[1727358847315,0.3676919,152.01,151.98,7.89553031]
[1727358848523,0.3676919,152.01,151.98,6.5797]
[1727358848931,0.3676919,152.01,151.99,7.89505212]
[1727358849118,0.3676919,152.01,152.0,6.5789]
[1727358849735,0.3676919,152.01,152.0,6.70439]
[1727358849945,0.3676919,152.01,152.0,6.82988]
[1727358853441,0.3676919,152.01,152.0,6.70439]
[1727358853620,0.3676919,152.01,151.99,23.0272]
[1727358855941,0.3676919,152.01,151.99,6.5793]
[1727358856148,0.3676919,152.01,152.0,7.89460762]
[1727358856628,0.3676919,152.01,152.0,6.82988]
[1727358856939,0.3676919,152.01,152.0,30.606764]
[1727358858638,0.3676919,152.01,152.0,6.82988]
[1727358858944,0.3676919,152.01,151.99,6.5792]
[1727358859147,0.3676919,152.01,151.98,23.15439]
[1727358859529,0.3676919,152.01,151.99,6.70479]
[1727358859747,0.3676919,152.01,151.98,16.4492]
[1727358859748,0.3676919,152.01,151.98,23.0286]
[1727358861446,0.3676919,152.01,151.98,16.4492]
[1727358861653,6.9461919,152.01,151.98,16.4492]
[1727358862147,0.3676919,152.01,151.98,16.4492]
[1727358862443,0.3676919,152.01,151.99,1.31565452]
[1727358862849,0.3676919,152.01,151.99,1.31558274]
[1727358863051,0.3676919,152.01,151.99,6.5792]
[1727358863543,6.9462919,152.01,151.97,6.5801]
[1727358864037,0.3676919,152.01,151.97,6.5801]
[1727358864245,0.3676919,152.01,151.98,6.5797]
[1727358864637,0.3676919,152.01,151.99,7.89506273]
[1727358865725,0.3676919,152.01,152.0,1.31561203]
[1727358865945,0.3676919,152.01,151.99,6.5793]
[1727358867145,0.3676919,152.01,151.98,6.70509]
[1727358869847,0.3676919,152.01,151.99,7.8948723]
[1727358870049,0.3676919,152.01,152.0,6.5789]
[1727358870432,0.3676919,152.01,152.0,6.82988]
[1727358871344,0.3676919,152.01,152.0,30.606764]
[1727358871526,0.3676919,152.01,152.0,51.92207699]
[1727358871722,0.3676919,152.01,152.0,50.606764]
[1727358872937,0.3676919,152.01,152.0,51.92207999]
[1727358873449,0.3676919,152.01,152.0,50.606764]
[1727358875536,0.3676919,152.01,152.0,51.922108]
[1727358875938,0.3676919,152.01,152.0,50.606764]
[1727358876246,0.3676919,152.01,152.0,51.92181171]
[1727358877136,0.3676919,152.01,152.0,50.606764]
[1727358877335,0.3676919,152.01,152.0,51.92181056]
[1727358877753,0.3676919,152.01,152.0,50.606764]
[1727358880763,0.3676919,152.01,152.0,26.70439]
[1727358880971,0.3676919,152.01,152.0,6.5789]
[1727358881145,0.3676919,152.01,151.99,16.4482]
[1727358881468,0.3676919,152.01,152.0,6.5789]
[1727358882379,0.3676919,152.01,152.0,51.92209545]
[1727358882873,0.3676919,152.01,152.0,50.606764]
[1727358885467,0.3676919,152.01,152.0,51.92204772]
[1727358886046,0.3676919,152.01,152.0,51.92204916]
[1727358886265,0.3676919,152.01,152.0,50.606764]
[1727358886769,0.3676919,152.01,152.0,51.92189655]
[1727358887271,0.3676919,152.01,152.0,50.606764]
[1727358889443,0.3676919,152.01,152.0,51.92189444]
[1727358889649,0.2590789,152.04,152.02,60.472464]
[1727358889846,6.5102,152.11,152.09,6.575]
[1727358890152,6.5102,152.11,152.09,6.82598]
[1727358891154,6.5102,152.11,152.08,0.25098]
[1727358891563,6.5102,152.11,152.08,6.82638]
[1727358894453,6.5102,152.11,152.09,1.44031472]
[1727358894668,6.5102,152.11,152.09,0.12549]
[1727358895349,6.5102,152.11,152.09,6.82598]
[1727358896476,6.5102,152.11,152.09,6.70049]
[1727358896666,6.5102,152.11,152.08,23.776884]
[1727358896667,6.5102,152.11,152.08,6.5753]
[1727358897953,6.5102,152.11,152.09,0.25098]
[1727358900362,16.8404143,152.13,152.09,8.14080047]
[1727358900567,16.8404143,152.13,152.09,30.602864]
[1727358900958,16.8404143,152.13,152.09,50.602864]
[1727358901168,0.3327143,152.13,152.09,50.602864]
[1727358902458,1281.17692565,152.1,152.09,50.602864]
[1727358903579,1281.17692565,152.1,152.09,63.90703787]
[1727358904496,1281.17692565,152.1,152.09,50.602864]
[1727358904789,1281.17692565,152.1,152.09,6.82598]
[1727358905161,1281.17692565,152.1,152.09,30.602864]
[1727358910883,1281.17692565,152.1,152.08,30.603164]
[1727358911087,1281.17692565,152.1,152.07,23.015]
[1727358911268,1281.17692565,152.1,152.07,29.74357387]
[1727358911475,1281.17692565,152.1,152.09,6.575]
[1727358911692,1281.17692565,152.1,152.09,19.87917387]
[1727358912576,1281.17692565,152.1,152.09,63.90703787]
[1727358915982,1208.4761594,152.1,152.09,63.90703787]
[1727358916394,1208.2253594,152.1,152.09,63.90703787]
[1727358916573,1186.96324286,152.1,152.09,63.90703787]
[1727358918503,1151.12874286,152.1,152.09,65.22148751]
[1727358918706,1142.3107141,152.1,152.09,65.22148751]
[1727358918995,1058.26594785,152.1,152.09,65.22148751]
[1727358919199,1047.51614785,152.1,152.09,63.90703787]
[1727358919803,1047.51614785,152.1,152.09,169.7785882]
[1727358926804,1047.51614785,152.1,152.09,26.575]
[1727358928806,1047.51614785,152.1,152.09,26.82598]
[1727358930116,1047.51614785,152.1,152.09,28.14062831]
[1727358930281,1047.51614785,152.1,152.09,26.82598]
[1727358930488,1047.51614785,152.1,152.09,50.602864]
[1727358930907,1063.65444785,152.1,152.09,26.575]
[1727358931107,1070.18184785,152.1,152.07,16.4394]
[1727358931284,1070.18184785,152.1,152.09,6.575]
[1727358931486,1070.18184785,152.1,152.07,16.4394]
[1727358931811,1076.75644785,152.1,152.06,6.5762]
[1727358932282,1070.18184785,152.1,152.06,6.5762]
[1727358932483,1070.18184785,152.1,152.05,20.0]
[1727358932680,1070.18184785,152.1,152.07,6.5758]
[1727358933208,1070.18184785,152.1,152.06,16.4405]
[1727358933590,1076.75674785,152.1,152.06,16.4405]
[1727358933793,6.5754,152.08,152.04,6.5771]
[1727358934205,6.5754,152.08,152.03,23.021]
[1727358934383,23.0478,152.07,152.03,23.021]
[1727358935015,23.0478,152.07,152.03,16.4435]
[1727358935386,23.0478,152.07,152.04,0.25098]
[1727358935593,23.0478,152.07,152.06,6.70179]
[1727358937401,23.0478,152.07,152.06,6.82728]
[1727358942522,1047.51614785,152.1,152.09,6.82598]
[1727358942732,1047.51614785,152.1,152.09,26.82598]
[1727358947699,1047.51614785,152.1,152.09,6.82598]
[1727358949223,1047.51614785,152.1,152.09,6.575]
[1727358949927,1047.51614785,152.1,152.07,16.4388]
[1727358950105,6.575,152.09,152.05,6.5766]
[1727358950298,1054.09074785,152.1,152.06,6.5763]
[1727358950700,1047.51614785,152.1,152.07,6.5758]
[1727358951100,1047.51614785,152.1,152.08,6.5753]
[1727358951404,1047.51614785,152.1,152.09,6.575]
[1727358952414,1047.51614785,152.1,152.09,6.82598]
[1727358953032,1047.51614785,152.1,152.09,6.70049]
[1727358953707,1047.51614785,152.1,152.09,6.82598]
[1727358953913,1047.51614785,152.1,152.09,26.82598]
[1727358954108,1047.51614785,152.1,152.09,28.1407447]
[1727358954311,1047.51614785,152.1,152.09,26.82598]
[1727358955715,1047.51614785,152.1,152.09,50.602864]
[1727358958626,1047.51614785,152.1,152.09,26.82598]
[1727358960619,1047.51614785,152.1,152.09,6.575]
[1727358962028,1047.51614785,152.1,152.09,26.82598]
[1727358962412,1047.51614785,152.1,152.09,51.91751243]
[1727358962612,1047.51614785,152.1,152.09,50.602864]
[1727358962812,1047.51614785,152.1,152.09,71.41683329]
[1727358963015,1047.51614785,152.1,152.09,50.602864]
[1727358963509,1047.51614785,152.1,152.09,26.82598]
[1727358964614,1047.51614785,152.1,152.09,26.575]
[1727358965815,1047.51614785,152.1,152.09,26.82598]
[1727358967140,1047.51614785,152.1,152.09,6.82598]
[1727358967514,1047.51614785,152.1,152.09,6.70049]
[1727358968236,1047.51614785,152.1,152.09,6.82598]
[1727358968745,1047.51614785,152.1,152.09,26.82598]
[1727358969631,1047.01614785,152.1,152.09,26.82598]
[1727358971026,1047.01614785,152.1,152.09,50.602864]
[1727358971225,1047.01614785,152.1,152.09,26.82598]
[1727358975542,1047.01614785,152.1,152.09,50.602864]
[1727358977519,1047.01614785,152.1,152.09,26.82598]
[1727358978338,1047.01614785,152.1,152.09,50.602864]
[1727358978541,1047.01614785,152.1,152.09,51.91751705]
[1727358978849,1047.01614785,152.1,152.09,71.41683329]
[1727358980026,1047.01614785,152.1,152.09,50.602864]
[1727358984354,1046.76534785,152.1,152.09,72.73141063]
[1727358984537,926.59653983,152.1,152.09,72.73141063]
[1727358984842,889.58963983,152.1,152.09,51.91744134]
[1727358985048,877.98774043,152.1,152.09,51.91744134]
[1727358985236,789.26429515,152.1,152.09,71.70744134]
[1727358985437,773.21829515,152.1,152.09,70.392864]
[1727358985730,753.37489515,152.1,152.09,70.392864]
[1727358985951,735.02469515,152.1,152.09,70.392864]
[1727358986145,705.18629515,152.1,152.09,183.58158829]
[1727358986351,641.03209515,152.1,152.09,199.04058829]
[1727358986656,588.36239998,152.1,152.09,199.04058829]
[1727358986949,535.69270481,152.1,152.09,199.04058829]
[1727358987146,449.06689675,152.1,152.09,199.04058829]
[1727358987448,449.06689675,152.1,152.09,179.25058829]
[1727358987652,435.98879679,152.1,152.09,199.04058829]
[1727358988444,422.65989683,152.1,152.09,199.04058829]
[1727358990231,349.11218873,152.1,152.09,199.04058829]
[1727358990471,337.85218873,152.1,152.09,199.04058829]
[1727358990746,337.85218873,152.1,152.09,179.25058829]
[1727358990747,324.77408877,152.1,152.09,179.25058829]
[1727358990929,315.77408877,152.1,152.09,179.25058829]
[1727358991128,299.13811762,152.1,152.09,179.25058829]
[1727358991329,263.7311177,152.1,152.09,179.25058829]
[1727358992047,206.07679875,152.1,152.09,179.25058829]
[1727358992251,136.248117,152.1,152.09,249.04058829]
[1727358992546,136.248117,152.1,152.09,270.1201362]
[1727358992755,73.59408857,152.1,152.09,270.1201362]
[1727358993129,0.3327143,152.13,152.11,23.776884]
[1727358993341,0.3327143,152.13,152.1,39.79]
[1727358993342,0.3676919,152.19,152.15,24.027864]
[1727358993540,0.3676919,152.19,152.16,20.0]
[1727358993766,0.3676919,152.19,152.17,0.25098]
[1727358994165,0.3676919,152.19,152.18,20.25098]
[1727358994469,0.3676919,152.19,152.18,44.027864]
[1727358994669,0.3676919,152.19,152.18,45.34150442]
[1727358995166,0.2590789,152.23,152.18,44.027864]
[1727358995340,0.2590789,152.23,152.2,43.776884]
[1727358995548,0.2590789,152.23,152.21,23.776884]
[1727358995748,0.2590789,152.23,152.22,25.09016511]
[1727358996354,0.2590789,152.23,152.22,45.09016511]
[1727358996967,0.0082789,152.23,152.22,43.776884]
[1727358998573,0.0082789,152.23,152.22,93.71211787]
[1727358999080,0.0082789,152.23,152.22,93.96309787]
[1727359000146,0.0082789,152.23,152.22,96.7990875]
[1727359002268,0.0082789,152.23,152.22,93.96309787]
[1727359005660,0.0082789,152.23,152.22,95.2760992]
[1727359007181,0.0082789,152.23,152.22,93.96309787]
[1727359007673,0.0082789,152.23,152.19,20.0]
[1727359007872,0.0082789,152.23,152.21,2.631752]
[1727359009181,0.0082789,152.23,152.19,20.0]
[1727359010281,0.0082789,152.23,152.21,0.12549]
[1727359010476,0.0082789,152.23,152.22,1.43890522]
[1727359011081,0.0082789,152.23,152.22,24.027864]
[1727359011281,0.0082789,152.23,152.22,44.027864]
[1727359013172,0.0082789,152.23,152.19,49.94179566]
[1727359014670,0.0082789,152.23,152.2,20.0]
[1727359014981,0.0082789,152.23,152.21,24.027864]
[1727359015185,0.0082789,152.23,152.22,44.027864]
[1727359018587,0.0082789,152.23,152.22,20.0]
[1727359018888,0.0082789,152.23,152.2,20.0]
[1727359019272,0.0082789,152.23,152.16,49.95492442]
[1727359020587,0.0082789,152.23,152.17,44.027864]
[1727359021501,15.1689,152.22,152.17,44.027864]
[1727359021667,15.1689,152.22,152.17,20.0]
[1727359022477,15.1689,152.22,152.18,1.31378863]
[1727359022991,15.1689,152.22,152.19,24.027864]
[1727359023293,15.1689,152.22,152.21,23.776884]
[1727359024095,15.1689,152.22,152.19,0.12549]
[1727359024288,15.1689,152.22,152.16,49.95492442]
[1727359024489,15.1689,152.22,152.13,49.96477552]
[1727359024875,15.1689,152.22,152.14,1.31386248]
[1727359025285,15.1689,152.22,152.13,56.83947945]
[1727359025687,15.1689,152.22,152.14,20.0]
[1727359026070,6.1546,152.21,152.13,6.87470393]
[1727359026279,15.3762,152.2,152.13,6.87470393]
[1727359026491,15.3762,152.2,152.1,50.16988186]
[1727359027698,15.3762,152.2,152.11,44.027864]
[1727359027998,15.6243,152.18,152.11,44.027864]
[1727359028197,6.4552,152.17,152.08,15.1689]
[1727359028397,6.4552,152.17,152.07,0.2590789]
[1727359028398,16.539,152.16,152.07,0.2590789]
[1727359028575,16.539,152.16,152.07,0.5098789]
[1727359028576,6.4547,152.15,152.07,0.5098789]
[1727359029798,6.4547,152.15,152.08,1.31443468]
[1727359030007,6.4547,152.15,152.09,24.027864]
[1727359030177,6.4547,152.15,152.11,24.027864]
[1727359030380,6.4547,152.15,152.13,23.902374]
[1727359030597,6.4547,152.15,152.14,25.21675187]
[1727359031182,6.4547,152.15,152.14,24.027864]
[1727359034584,6.4547,152.15,152.08,20.0]
[1727359035783,6.4547,152.15,152.1,20.25098]
[1727359035984,6.4547,152.15,152.12,20.25098]
[1727359036177,6.4547,152.15,152.13,23.776884]
[1727359037982,6.4547,152.15,152.14,1.56534791]
[1727359038289,6.4547,152.15,152.14,25.34223191]
[1727359038506,6.4547,152.15,152.14,24.027864]
[1727359039006,16.539,152.16,152.15,24.027864]
[1727359039386,6.3115,152.19,152.16,20.25098]
[1727359039695,6.3115,152.19,152.18,0.12549]
[1727359039881,6.3115,152.19,152.18,0.25098]
[1727359041989,6.3115,152.19,152.17,23.776884]
[1727359044008,6.3115,152.19,152.11,0.2508]
[1727359044210,6.3115,152.19,152.12,0.25098]
[1727359046189,6.3115,152.19,152.11,20.2508]
[1727359046384,6.3115,152.19,152.12,1.31419356]
[1727359046609,6.3115,152.19,152.13,1.31419419]
[1727359046814,6.3115,152.19,152.11,20.2508]
[1727359047495,6.3115,152.19,152.12,24.027864]
[1727359047701,6.3115,152.19,152.14,24.027864]
[1727359047911,6.3115,152.19,152.14,23.776884]
[1727359048119,6.3115,152.19,152.11,0.2508]
[1727359048411,12.8825,152.19,152.11,0.2508]
[1727359049212,16.6627,152.18,152.11,0.2508]
[1727359049423,23.2338,152.18,152.11,0.2508]
[1727359049589,23.2338,152.18,152.12,1.31441562]
[1727359049590,16.6627,152.18,152.12,1.31441562]
[1727359050394,16.6627,152.18,152.11,0.2508]
[1727359050607,16.6627,152.18,152.12,0.25098]
[1727359055421,16.6627,152.18,152.14,24.027864]
[1727359055702,16.6627,152.18,152.16,23.776884]
[1727359057329,16.6627,152.18,152.17,23.776884]
[1727359058432,16.6627,152.18,152.17,24.027864]
[1727359061017,16.6627,152.18,152.17,23.776884]
[1727359064355,6.3115,152.19,152.18,24.027864]
[1727359065733,6.3115,152.19,152.11,44.027684]
[1727359065926,6.3115,152.19,152.12,0.25098]
[1727359068434,16.0614,152.18,152.12,0.25098]
[1727359068631,16.0614,152.18,152.11,0.2508]
[1727359070042,16.0614,152.18,152.12,0.25098]
[1727359073547,16.0614,152.18,152.14,24.027864]
[1727359073842,16.0614,152.18,152.16,23.776884]
[1727359074361,16.0614,152.18,152.17,23.776884]
[1727359075143,16.0614,152.18,152.14,0.25098]
[1727359083427,16.0614,152.18,152.13,24.027864]
[1727359083764,16.0614,152.18,152.15,24.027864]
[1727359088653,16.0614,152.18,152.15,23.776884]
[1727359094473,22.6326,152.18,152.12,0.25098]
[1727359094651,22.6326,152.18,152.11,0.2508]
[1727359095250,22.6329,152.18,152.11,0.2508]
[1727359096284,6.5715,152.17,152.11,0.2508]
[1727359096464,6.5732,152.14,152.11,0.2508]
[1727359096777,6.573,152.14,152.11,0.2508]
[1727359096981,6.5725,152.15,152.11,0.2508]
[1727359098465,29.574,152.16,152.11,0.2508]
[1727359101575,23.0019,152.16,152.11,0.2508]
[1727359101767,6.5731,152.14,152.11,0.2508]
[1727359103365,6.5725,152.15,152.11,0.2508]
[1727359103680,29.574,152.16,152.11,0.2508]
[1727359104269,23.0019,152.16,152.11,0.2508]
[1727359104767,6.573,152.14,152.11,0.2508]
[1727359106378,6.5726,152.15,152.11,0.2508]
[1727359106574,23.0019,152.16,152.11,0.2508]
[1727359106783,29.574,152.16,152.11,0.2508]
[1727359108868,23.0019,152.16,152.11,0.2508]
[1727359109683,23.0019,152.16,152.12,23.776884]
[1727359110758,23.0019,152.16,152.13,1.3145525]
[1727359110959,21.6979,152.2,152.14,23.776884]
[1727359111165,21.6979,152.2,152.16,23.776884]
[1727359111465,21.6979,152.2,152.17,1.31415933]
[1727359111666,21.6979,152.2,152.16,23.776884]
[1727359113695,28.4105,152.24,152.17,1.31412703]
[1727359114583,28.4105,152.24,152.18,24.027864]
[1727359114885,28.4105,152.24,152.18,0.25098]
[1727359115257,28.4105,152.24,152.17,0.25098]
[1727359115975,21.8419,152.24,152.17,0.25098]
[1727359118367,6.5677,152.26,152.17,0.25098]
[1727359118569,21.7613708,152.28,152.2,0.25098]
[1727359118771,21.7613708,152.28,152.19,0.25098]
[1727359119082,21.7613708,152.28,152.15,13.29589721]
[1727359119083,6.5693,152.23,152.13,20.0]
[1727359120587,6.5693,152.23,152.15,20.0]
[1727359120783,6.5693,152.23,152.16,24.027864]
[1727359121787,6.5686,152.24,152.16,24.027864]
[1727359122976,16.4187,152.27,152.16,24.027864]
[1727359123182,6.569,152.23,152.16,24.027864]
[1727359123586,16.4187,152.27,152.16,24.027864]
[1727359123797,6.5686,152.24,152.16,24.027864]
[1727359125381,6.5682,152.25,152.16,24.027864]
[1727359125588,6.5679,152.26,152.18,24.027864]
[1727359126105,6.5673,152.27,152.2,24.027864]
[1727359126390,21.7613708,152.28,152.19,0.12549]
[1727359126391,6.5682,152.25,152.19,0.12549]
[1727359126877,6.5686,152.24,152.18,23.902374]
[1727359127890,6.5682,152.25,152.19,1.31401044]
[1727359128887,6.5682,152.25,152.18,23.902374]
[1727359129966,6.5682,152.25,152.19,1.31400141]
[1727359130366,6.5682,152.25,152.18,23.902374]
[1727359132987,21.7613708,152.28,152.2,43.902374]
[1727359133196,21.7613708,152.28,152.21,0.12549]